[Event "Indian Rapid Championship 2023-24"]
[Site "Nashik"]
[Date "2024.03.05"]
[Round "6.1"]
[White "Aronyak Ghosh"]
[Black "Ghosh, Diptayan"]
[Result "1/2-1/2"]
[ECO "D13"]
[WhiteElo "2517"]
[BlackElo "2559"]
[Annotator "TA"]
[PlyCount "20"]
[EventDate "2024.03.02"]
[EventType "swiss"]
[EventCountry "IND"]
[SourceTitle "playchess.com"]
[Source "ChessBase"]
[SourceQuality "1"]
[TimeControl "900+10"]

{[%evp 15,20,0,8,0,14,0,57]} 1. d4 {[%emt 0:00:09]} d5 {[%emt 0:00:06]} 2. c4 {[%emt 0:00:16]} c6 {[%emt 0:00:12]} 3. Nf3 {[%emt 0:00:05]} Nf6 {[%emt 0:00:05]} 4. cxd5 {[%emt 0:00:04]} cxd5 {[%emt 0:00:02]} 5. Nc3 {[%emt 0:00:02]} Nc6 {[%emt 0:00:06]} 6. Bf4 {[%emt 0:00:02]} Nh5 {[%emt 0:00:27]} 7. Bd2 {[%emt 0:00:04]} Nf6 {[%emt 0:00:03]} 8. Bf4 {[%emt 0:00:13]} Nh5 {[%emt 0:00:10] The position is equal.} 9. Bd2 {[%emt 0:00:03]} Nf6 {[%emt 0:00:03]} 10. Bf4 {[%emt 0:00:01]} Ng8 {[%emt 0:00:18] An uneventful encounter.   Mistake:       	---       	Black=1      OK:         	---       	Black=1} ({Better is} 10... Nh5 $11 11. Bd2) 1/2-1/2

[Event "Indian Rapid Championship 2023-24"]
[Site "Nashik"]
[Date "2024.03.05"]
[Round "6.2"]
[White "Mitrabha, Guha"]
[Black "Sammed Jaykumar, Shete"]
[Result "0-1"]
[ECO "E60"]
[WhiteElo "2526"]
[BlackElo "2404"]
[Annotator "TA"]
[PlyCount "84"]
[EventDate "2024.03.02"]
[EventType "swiss"]
[EventCountry "IND"]
[SourceTitle "playchess.com"]
[Source "ChessBase"]
[SourceQuality "1"]
[TimeControl "900+10"]

{[%evp 16,84,56,53,74,58,44,24,34,29,30,6,4,7,0,15,0,0,11,0,0,0,1,-20,-12,0,32,38,50,0,6,0,0,0,42,40,28,0,0,0,0,0,-14,-28,0,0,0,0,0,0,0,-194,-214,-194,-71,-1029,-1002,-29978,-29979,-29979,-29980,-29980,-29981,-29981,-29979,-29988,-29987,-29989,-29990,-29988,-822]} 1. c4 {[%emt 0:00:02]} Nf6 {[%emt 0:00:33]} 2. Nf3 {[%emt 0:00:04]} c5 {[%emt 0:00:08]} 3. g3 {[%emt 0:00:05]} g6 {[%emt 0:00:04]} 4. Bg2 {[%emt 0:00:03]} Bg7 {[%emt 0:00:01]} 5. d4 {[%emt 0:00:02][%cal Bd2d4,Bd4d5][%mdl 32]} O-O {[%emt 0:00:06]} 6. O-O {[%emt 0:00:02]} d6 {[%emt 0:00:02]} 7. b3 {[%emt 0:00:29]} Nc6 {[%emt 0:01:29]} 8. Bb2 {[%emt 0:00:01]} Bg4 {[%emt 0:00:09]} 9. d5 {[%emt 0:00:22]} Bxf3 {[%emt 0:01:29]} 10. exf3 {[%emt 0:00:05]} Nd4 {[%emt 0:00:26]} 11. Nc3 {[%emt 0:00:21]} Nd7 {[%emt 0:00:59] White has an edge.} 12. f4 {[%emt 0:00:34]} Rb8 {[%emt 0:00:09]} 13. Ne2 {[%emt 0:00:15][%cal Re2d4]} Nf3+ {[%emt 0:00:41]} 14. Bxf3 {[%emt 0:00:02]} Bxb2 {[%emt 0:00:01]} 15. Rb1 {[%emt 0:00:00]} Bg7 {[%emt 0:00:02]} 16. h4 {[%emt 0:00:01]} b5 {[%emt 0:00:04]} 17. Qd2 {[%emt 0:00:24]} bxc4 {[%emt 0:01:09]} 18. bxc4 {[%emt 0:00:01]} Qc7 {[%emt 0:00:06]} 19. Qe3 {[%emt 0:00:48]} Bf6 {[%emt 0:01:43]} 20. g4 {[%emt 0:00:45][%cal Bg3g4,Bg4g5][%mdl 32]} Rfe8 {[%emt 0:00:39]} 21. g5 {[%emt 0:00:18]} Bg7 {[%emt 0:00:02]} 22. Kg2 {[%emt 0:00:12]} Rb4 {[%emt 0:00:18]} 23. Qd3 {[%emt 0:00:25]} Reb8 {[%emt 0:00:16]} 24. Bg4 {[%emt 0:00:54]} Rb2 {[%emt 0:04:26]} 25. h5 {[%emt 0:00:46]} Nf8 {[%emt 0:00:38]} 26. f5 {[%emt 0:00:47]} Qa5 {[%emt 0:00:57]} 27. fxg6 {[%emt 0:00:22]} hxg6 {[%emt 0:00:03]} 28. Rbd1 {[%emt 0:01:48]} Qa4 {[%emt 0:02:18]} (28... Rxa2 29. h6 Be5 30. f4 $15) (28... gxh5 $6 29. Bxh5 R8b7 (29... Qxa2 $2 30. Ra1 $18) (29... Rxa2 $2 30. Qf5 $18) 30. Nf4 $16) 29. Qe4 {[%emt 0:00:32]} Qc2 {[%emt 0:00:07]} 30. Rd3 $1 {[%emt 0:00:11]} Rb1 $36 {[%emt 0:00:14][%mdl 2048] Dodges Rc1. Black has good play.} 31. Rxb1 {[%emt 0:01:12]} Rxb1 {[%emt 0:00:03]} 32. Re3 {[%emt 0:00:42]} Qd1 {[%emt 0:00:17]} 33. Rh3 $2 {[%emt 0:05:47]} (33. Kh3 $11 {and White has nothing to worry.} Rb2 34. hxg6 Nxg6 35. Bh5 (35. Ng3 $2 Qg1 $19) 35... Qf1+ (35... Rxa2 $2 36. Bxg6 Be5 37. f4 $18) 36. Qg2 Qxg2+ 37. Kxg2) 33... Qf1+ $19 {[%emt 0:00:10]} 34. Kg3 {[%emt 0:00:07] [#]} Be5+ {[%emt 0:00:10]} (34... Ra1 $1 $19 {[%cal Ra1a2] and Black stays clearly on top.} 35. hxg6 (35. Qxe7 $2 {perishes.} Be5+ 36. f4 Qe1+ 37. Kg2 Bxf4 $19) 35... Nxg6 (35... Rxa2 $2 36. gxf7+ Kxf7 37. Bh5+ Kg8 38. Qf3 $18)) 35. Kf3 $2 {[%emt 0:00:44][%mdl 8192] White does not recover from this.} (35. f4 $17 Qe1+ 36. Kf3) 35... Rb2 {[%emt 0:00:42] ...Nh7 would now be deadly.} 36. Qd3 {[%emt 0:01:18]} Nh7 {[%emt 0:00:08] Black mates.} 37. Ke3 {[%emt 0:00:32]} Nxg5 {[%emt 0:00:12]} 38. hxg6 {[%emt 0:00:01]} Nxh3 {[%emt 0:00:05]} 39. gxf7+ {[%emt 0:00:02]} Kg7 {[%emt 0:00:03]} 40. f8=Q+ {[%emt 0:00:03]} Kxf8 {[%emt 0:00:01]} 41. Qf5+ {[%emt 0:00:00]} Bf6 {[%emt 0:00:07]} 42. Bh5 {[%emt 0:00:19] [#]} Qxf2+ {[%emt 0:00:15] Weighted Error Value: White=0.42/Black=0.11 (very precise) .  Loses game:     	White=2     	---        Mistake:       	---       	Black=1      Inaccurate:     	White=3     	Black=3      OK:         	White=6     	Black=16     Best:        	White=2     	---        Strong:       	White=1     	---} 0-1

[Event "Indian Rapid Championship 2023-24"]
[Site "Nashik"]
[Date "2024.03.05"]
[Round "6.3"]
[White "Ravi, Teja S."]
[Black "Prraneeth Vuppala"]
[Result "1/2-1/2"]
[ECO "D02"]
[WhiteElo "2437"]
[BlackElo "2506"]
[Annotator "TA"]
[PlyCount "67"]
[EventDate "2024.03.02"]
[EventType "swiss"]
[EventCountry "IND"]
[SourceTitle "playchess.com"]
[Source "ChessBase"]
[SourceQuality "1"]
[TimeControl "900+10"]

{[%evp 10,67,12,11,16,10,13,12,18,22,25,0,6,0,21,0,0,4,0,0,11,8,49,43,46,10,27,0,0,0,32,16,22,22,52,8,18,8,8,0,0,0,0,0,0,0,0,0,0,0,0,0,0,0,0,0,0,0,0,0]} 1. d4 {[%emt 0:00:02]} Nf6 {[%emt 0:00:04]} 2. Nf3 {[%emt 0:00:02]} d5 {[%emt 0:00:05]} 3. Bf4 {[%emt 0:00:03]} e6 {[%emt 0:01:00]} 4. e3 {[%emt 0:00:02]} Bd6 {[%emt 0:00:02]} 5. Bxd6 {[%emt 0:00:01]} Qxd6 {[%emt 0:00:02]} 6. c4 {[%emt 0:00:01]} O-O {[%emt 0:00:57]} 7. Nc3 {[%emt 0:00:02]} dxc4 {[%emt 0:00:02]} 8. Bxc4 {[%emt 0:00:03]} c5 {[%emt 0:00:04]} 9. O-O {[%emt 0:00:26]} Nc6 {[%emt 0:00:37]} 10. Qe2 {[%emt 0:01:43]} a6 {[%emt 0:02:28]} 11. Rfd1 {[%emt 0:01:31]} b5 {[%emt 0:00:18]} 12. dxc5 {[%emt 0:00:38]} (12. d5 $5 exd5 13. Bxd5 Nxd5 14. Nxd5 $17) 12... Qxc5 {[%emt 0:00:05]} 13. Bd3 {[%emt 0:00:01]} Bb7 {[%emt 0:00:32]} 14. Rac1 {[%emt 0:00:17][%cal Rc3b5]} Qh5 {[%emt 0:01:31]} 15. Ne4 {[%emt 0:00:11]} Nxe4 {[%emt 0:00:09]} 16. Bxe4 {[%emt 0:00:06]} Rac8 {[%emt 0:00:05]} 17. h3 {[%emt 0:02:27] Wards off Qg4} h6 {[%emt 0:03:07]} (17... f5 $5 18. Bd3 Ne7 $14) 18. Nd4 {[%emt 0:03:34]} Qxe2 {[%emt 0:00:42]} 19. Nxe2 {[%emt 0:00:02]} Na5 {[%emt 0:01:47][%cal Bc6a5,Ba5b7,Bb7c5,Bc5e4][%mdl 32]} 20. Bxb7 {[%emt 0:00:19]} Nxb7 {[%emt 0:00:04]} 21. Kf1 {[%emt 0:01:44]} Nc5 {[%emt 0:01:07]} 22. Ke1 {[%emt 0:01:26]} g5 {[%emt 0:01:03] The position is equal.} 23. Rd2 {[%emt 0:00:22]} Kg7 {[%emt 0:00:19]} 24. b4 {[%emt 0:00:15]} Ne4 {[%emt 0:00:45]} 25. Rdc2 {[%emt 0:00:02]} Rxc2 {[%emt 0:00:06]} 26. Rxc2 $11 {[%emt 0:00:01][%mdl 4096] Endgame. KRN-KRN} a5 {[%emt 0:00:39]} 27. bxa5 {[%emt 0:00:56] [#] a6 is the strong threat.} Ra8 {[%emt 0:00:02]} 28. f3 {[%emt 0:02:25]} Nd6 {[%emt 0:01:34]} 29. Rc6 {[%emt 0:00:02]} Nc4 {[%emt 0:00:01]} 30. a6 {[%emt 0:00:01][%cal Oa2a4]} Ne5 {[%emt 0:00:13]} 31. Rb6 {[%emt 0:00:05]} Nc4 {[%emt 0:00:01][%csl LRb6,LRe3]} 32. Rc6 {[%emt 0:00:13][%cal Oa2a4]} Ne5 {[%emt 0:00:01]} 33. Rb6 {[%emt 0:00:06]} Nc4 $1 {[%emt 0:00:02][%csl LRb6,LRe3]} 34. Rc6 {[%emt 0:00:11] Weighted Error Value: White=0.08 (flawless) /Black=0.07 (flawless) .  Inaccurate:     	White=3     	Black=3      OK:         	White=12    	Black=12     Best:        	---       	Black=2} 1/2-1/2

[Event "Indian Rapid Championship 2023-24"]
[Site "Nashik"]
[Date "2024.03.05"]
[Round "6.4"]
[White "Raja Rithvik R"]
[Black "Srihari L R"]
[Result "1-0"]
[ECO "D13"]
[WhiteElo "2532"]
[BlackElo "2490"]
[Annotator "TA"]
[PlyCount "61"]
[EventDate "2024.03.02"]
[EventType "swiss"]
[EventCountry "IND"]
[SourceTitle "playchess.com"]
[Source "ChessBase"]
[SourceQuality "1"]
[TimeControl "900+10"]

{[%evp 16,61,35,30,41,28,26,43,86,85,102,21,27,10,32,33,14,22,19,13,13,13,37,0,166,165,151,174,172,150,303,295,316,295,311,292,1327,1318,1280,1284,1068,845,771,468,29988,29987,29990,29991]} 1. d4 {[%emt 0:00:02]} d5 {[%emt 0:00:16]} 2. c4 {[%emt 0:00:03]} c6 {[%emt 0:00:02]} 3. cxd5 {[%emt 0:00:24]} cxd5 {[%emt 0:00:02]} 4. Nc3 {[%emt 0:00:02]} Nf6 {[%emt 0:00:16]} 5. Nf3 {[%emt 0:00:02]} Nc6 {[%emt 0:00:01]} 6. Bf4 {[%emt 0:00:03]} a6 {[%emt 0:01:05]} 7. Rc1 {[%emt 0:00:02]} Bf5 {[%emt 0:00:03]} 8. e3 {[%emt 0:00:09]} e6 {[%emt 0:00:02]} 9. Qb3 {[%emt 0:00:01]} Bb4 {[%emt 0:00:15]} 10. Ne5 {[%emt 0:00:06]} Bxc3+ {[%emt 0:00:56]} 11. bxc3 {[%emt 0:00:39]} ({Don't play} 11. Rxc3 Ne4 12. Rxc6 (12. Nxc6 bxc6 13. Qb7 Nxc3 $15) 12... bxc6 $11) 11... Na5 {[%emt 0:00:02] White is slightly better.} 12. Qb4 {[%emt 0:00:46]} Nh5 {[%emt 0:02:22]} 13. g4 {[%emt 0:00:47]} ({White should try} 13. Bg5 $1 $16 {[%cal Rg5d8]} Nf6 14. g4) 13... Be4 $1 $11 {[%emt 0:00:31]} 14. f3 {[%emt 0:01:39]} Nxf4 {[%emt 0:00:02]} 15. exf4 {[%emt 0:00:03]} Bg6 {[%emt 0:00:07]} 16. h4 {[%emt 0:00:03] h5 is the strong threat.} f6 {[%emt 0:00:03]} 17. Nxg6 {[%emt 0:00:46]} hxg6 {[%emt 0:00:02][%cal Bh7g6,Bg6h5][%mdl 32]} 18. Kf2 {[%emt 0:00:41] Black must now prevent Re1.} f5 {[%emt 0:01:36]} 19. Re1 {[%emt 0:03:07]} (19. h5 {seems wilder.} fxg4 20. Re1 Kd7 21. c4) 19... Kf7 {[%emt 0:02:18] [#]} (19... Rxh4 $11 {and Black has nothing to worry.} 20. Rxe6+ Kf7) 20. h5 $1 $36 {[%emt 0:02:03][%mdl 2048] White is in control.} gxh5 {[%emt 0:01:08] [#]} 21. gxf5 {[%emt 0:00:02] White is much more active.} exf5 {[%emt 0:00:24]} 22. Re5 {[%emt 0:00:08]} Kg8 $2 {[%emt 0:05:01] A mistake that costs the game.} (22... g6 $16) 23. Rxf5 {[%emt 0:00:44]} Rc8 {[%emt 0:01:04] Inhibits Qc5.} 24. Rfxh5 {[%emt 0:01:04]} Rxh5 {[%emt 0:00:01]} 25. Rxh5 {[%emt 0:00:02] Threatens to win with Qb1.} b5 $2 {[%emt 0:00:02]} (25... g6 26. Rg5 Rc6) 26. Qb1 {[%emt 0:00:17] White wants to mate with Qh7+.} Rc6 {[%emt 0:01:09]} 27. Qh7+ {[%emt 0:00:02]} Kf7 {[%emt 0:00:01]} 28. Rg5 {[%emt 0:00:03]} Qf8 {[%emt 0:00:31]} 29. Rxd5 {[%emt 0:00:59][%cal Bg5d5,Bd5d7,Bd7g7][%mdl 32] aiming for Rd7+.} Qa3 {[%emt 0:00:19]} (29... Rh6 $18 30. Qf5+ Kg8) 30. Rd7+ {[%emt 0:00:50]} Ke8 {[%emt 0:00:01]} 31. Rxg7 {[%emt 0:00:14] Weighted Error Value: White=0.32/Black=0.58.  Loses game:     	---       	Black=1      Mistake:       	White=1     	Black=2      Inaccurate:     	White=1     	Black=1      OK:         	White=6     	Black=6      Best:        	White=1     	Black=1      Strong:       	White=1     	Black=1} 1-0

[Event "Indian Rapid Championship 2023-24"]
[Site "Nashik"]
[Date "2024.03.05"]
[Round "6.5"]
[White "Hari Madhavan N B"]
[Black "Neelotpal, Das"]
[Result "1-0"]
[ECO "C54"]
[WhiteElo "2395"]
[BlackElo "2355"]
[Annotator "TA"]
[PlyCount "75"]
[EventDate "2024.03.02"]
[EventType "swiss"]
[EventCountry "IND"]
[SourceTitle "playchess.com"]
[Source "ChessBase"]
[SourceQuality "1"]
[TimeControl "900+10"]

{[%evp 15,75,0,8,0,7,10,11,-2,16,-18,-7,-9,28,28,18,27,31,18,27,27,42,24,39,39,71,62,62,58,75,41,118,58,69,33,34,0,0,0,18,0,0,0,36,25,119,74,83,0,0,0,102,0,0,0,29994,29995,29995,29996,29996,29997,29997,29998]} 1. e4 {[%emt 0:00:02]} e5 {[%emt 0:00:02]} 2. Nf3 {[%emt 0:00:02]} Nc6 {[%emt 0:00:01]} 3. Bc4 {[%emt 0:00:02]} Bc5 {[%emt 0:00:03]} 4. c3 {[%emt 0:00:02]} Nf6 {[%emt 0:00:04]} 5. d4 {[%emt 0:00:01]} exd4 {[%emt 0:00:02]} 6. e5 {[%emt 0:00:02]} d5 {[%emt 0:00:18]} 7. Bb5 {[%emt 0:00:02]} Ne4 {[%emt 0:00:21]} 8. cxd4 {[%emt 0:00:02]} Bb6 {[%emt 0:00:20]} 9. Be3 {[%emt 0:00:02]} O-O {[%emt 0:00:16]} 10. Nc3 {[%emt 0:00:04]} Bg4 {[%emt 0:01:48]} 11. h3 {[%emt 0:00:03] The position is equal.} Bh5 {[%emt 0:00:23]} 12. Qa4 {[%emt 0:00:03]} Nxc3 {[%emt 0:01:09]} 13. bxc3 {[%emt 0:00:06]} f6 {[%emt 0:01:34] And now ...Bxf3 would win.} 14. Bxc6 {[%emt 0:01:35]} bxc6 {[%emt 0:00:02]} 15. exf6 $1 {[%emt 0:00:38]} Qxf6 {[%emt 0:03:09][%cal Oa8e8] White must now prevent ...Rae8!} 16. Ne5 {[%emt 0:00:04][%cal Oe1g1]} Be8 {[%emt 0:00:02][%cal Oc6c5]} 17. Qc2 {[%emt 0:00:48]} c5 {[%emt 0:01:28]} 18. O-O {[%emt 0:00:09]} cxd4 {[%emt 0:00:02]} 19. cxd4 {[%emt 0:00:22]} c6 {[%emt 0:00:01]} 20. Rac1 {[%emt 0:00:32]} Rc8 {[%emt 0:00:01]} 21. Qb3 {[%emt 0:00:09]} Bc7 {[%emt 0:01:48]} 22. Rfe1 {[%emt 0:00:15]} Kh8 {[%emt 0:01:06]} (22... Bd6 $14) 23. Qb2 {[%emt 0:00:55] White has more active pieces.} (23. Qb7 $16 Qe6 24. Qxa7) 23... Bd6 $14 {[%emt 0:00:57]} 24. Rc2 {[%emt 0:00:58]} Qf5 {[%emt 0:00:27][%cal Oc6c5]} 25. Rcc1 {[%emt 0:06:01]} c5 {[%emt 0:00:22]} 26. Qa3 {[%emt 0:02:21]} Bb5 {[%emt 0:01:10]} (26... Bxe5 $2 27. dxe5 a6 (27... d4 $2 28. Bxd4 Bd7 29. Rxc5 $18) 28. Bxc5 $18) 27. Qa5 {[%emt 0:01:06] Hoping for g4.} (27. f4 {simplifies} a6 28. Bd2 Rfe8 29. dxc5 Bxe5 30. fxe5 Rxe5 31. Bc3) 27... a6 {[%emt 0:01:06]} 28. a4 {[%emt 0:00:41]} Bc7 {[%emt 0:00:01] This pair of bishops is nice.} 29. Qd2 {[%emt 0:00:04]} cxd4 {[%emt 0:00:53]} (29... Bxe5 $11 {keeps the balance.} 30. dxe5 Bc4) 30. Bxd4 $16 {[%emt 0:00:17]} Bxa4 {[%emt 0:00:13]} 31. Re3 {[%emt 0:00:05]} (31. Ng4 $16 {Strongly threatening Re7.} Bf4 32. Bxg7+ Kxg7 33. Qd4+ Kg8 34. Rxc8 Qxc8 35. Qxd5+ (35. Qxa4 Qc3 $16) 35... Rf7 36. Nf6+ Kg7 37. Nh5+ Kg8 38. Nxf4) 31... Bd6 {[%emt 0:00:39]} 32. Rxc8 {[%emt 0:00:41]} Qxc8 {[%emt 0:00:18] [#]} (32... Rxc8 $11 33. Re1 Bb5) 33. Ng6+ $1 {[%emt 0:01:11][%mdl 512]} hxg6 $11 {[%emt 0:00:05]} 34. Re7 $1 {[%emt 0:00:01]} Bf4 {[%emt 0:00:16][%mdl 8192]} ({Not} 34... Bxe7 35. Qh6+ Kg8 36. Qxg7#) (34... Rf4 $11 35. Bxg7+ Kh7 36. Bb2+ Bxe7 37. Qxf4 Qf5) 35. Bxg7+ {[%emt 0:00:03] White mates.} Kg8 {[%emt 0:00:18]} 36. Qxd5+ {[%emt 0:00:02]} Kh7 {[%emt 0:00:00]} 37. Bxf8+ {[%emt 0:00:02]} Kh8 {[%emt 0:00:04]} 38. Qd4+ {[%emt 0:00:04] Weighted Error Value: White=0.21 (precise) /Black=0.34.  Loses game:     	---       	Black=1      Mistake:       	White=3     	Black=3      Inaccurate:     	White=5     	Black=3      OK:         	White=8     	Black=6      Best:        	White=3     	Black=1      Strong:       	White=2     	---} 1-0

[Event "Indian Rapid Championship 2023-24"]
[Site "Nashik"]
[Date "2024.03.05"]
[Round "6.6"]
[White "Vaz, Ethan"]
[Black "Das, Arghyadip"]
[Result "0-1"]
[ECO "C06"]
[WhiteElo "2409"]
[BlackElo "2405"]
[Annotator "TA"]
[PlyCount "124"]
[EventDate "2024.03.02"]
[EventType "swiss"]
[EventCountry "IND"]
[SourceTitle "playchess.com"]
[Source "ChessBase"]
[SourceQuality "1"]
[TimeControl "900+10"]

{[%evp 15,124,41,52,51,62,56,57,25,41,28,28,30,74,65,56,25,30,7,46,-8,8,-32,-37,-24,-32,-35,-21,-32,0,-23,-22,-44,-25,-27,-25,-25,-25,-25,-25,-25,-25,-25,-25,-25,-18,-33,-8,-51,-65,-41,-4,0,0,0,0,-18,-47,-96,-97,-97,-88,-114,-56,-74,0,0,0,0,0,0,12,0,0,0,0,0,0,-168,-180,-438,-423,-429,-441,-444,-390,-527,-467,-501,-495,-468,-465,-937,-645,-29970,-29972,-6339,-5927,-29985,-29983,-29991,-29990,-29990,-29991,-29990,-29991,-29992,-29991,-29991,-29990,-29990,-29991]} 1. e4 {[%emt 0:00:02]} e6 {[%emt 0:00:03]} 2. d4 {[%emt 0:00:03]} d5 {[%emt 0:00:01]} 3. Nd2 {[%emt 0:00:01]} Nf6 {[%emt 0:00:02]} 4. e5 {[%emt 0:00:03]} Nfd7 {[%emt 0:00:01]} 5. Bd3 {[%emt 0:00:01]} c5 {[%emt 0:00:01]} 6. c3 {[%emt 0:00:01]} Nc6 {[%emt 0:00:03]} 7. Ne2 {[%emt 0:00:03]} a5 {[%emt 0:00:01]} 8. O-O {[%emt 0:01:12]} a4 {[%emt 0:00:01]} 9. a3 {[%emt 0:02:28]} cxd4 {[%emt 0:00:05]} 10. cxd4 {[%emt 0:00:02]} Nb6 {[%emt 0:00:02]} 11. f4 {[%emt 0:04:24] White is slightly better.} g6 {[%emt 0:00:08]} 12. Nf3 {[%emt 0:00:53]} Na5 {[%emt 0:00:54]} 13. Rb1 {[%emt 0:01:19]} Nac4 {[%emt 0:02:26]} 14. Nc3 {[%emt 0:00:29]} Be7 {[%emt 0:00:38]} 15. Qe2 {[%emt 0:00:10]} Bd7 {[%emt 0:00:46]} 16. Nd1 {[%emt 0:00:38]} Bb5 {[%emt 0:01:34]} 17. Nf2 {[%emt 0:00:37]} (17. g4 $14) 17... Ba6 {[%emt 0:00:36]} 18. g3 {[%emt 0:01:11]} Na5 {[%emt 0:02:21]} 19. Bd2 {[%emt 0:00:24]} Bxd3 {[%emt 0:00:06]} 20. Nxd3 {[%emt 0:00:43][%cal Bf2d3,Bd3b4,Bb4a2,Ba2c3][%mdl 32]} Nb3 {[%emt 0:00:20]} 21. Bb4 {[%emt 0:01:06]} Bxb4 {[%emt 0:00:04]} 22. Nxb4 {[%emt 0:00:01]} Nc4 {[%emt 0:00:26]} 23. Rfd1 {[%emt 0:00:20]} Qb6 {[%emt 0:00:14]} 24. Qf2 {[%emt 0:00:03]} O-O-O {[%emt 0:00:37]} 25. Na2 {[%emt 0:00:46]} Kb8 {[%emt 0:00:09]} 26. Nc3 {[%emt 0:00:02]} Qc6 {[%emt 0:00:16][%cal Oc4a3]} 27. Rd3 {[%emt 0:00:48]} b5 {[%emt 0:00:29]} 28. Ne1 {[%emt 0:00:21][%cal Bf3e1,Be1c2,Bc2b4][%mdl 32]} Qb6 {[%emt 0:00:01]} 29. Nc2 {[%emt 0:00:11]} Rc8 {[%emt 0:00:01]} 30. Nb4 {[%emt 0:00:19]} Rc7 {[%emt 0:00:00]} 31. Ncxd5 {[%emt 0:00:36]} exd5 {[%emt 0:00:09]} 32. Nxd5 {[%emt 0:00:02]} Qa7 {[%emt 0:00:14]} (32... Qe6 {looks sharper.} 33. Nxc7 Kxc7 34. d5 Qb6) 33. Nxc7 {[%emt 0:00:01]} Qxc7 {[%emt 0:00:19]} 34. d5 {[%emt 0:00:25]} Qc5 {[%emt 0:00:01]} 35. d6 {[%emt 0:00:13] [#] And now Qxc5 would win.} Kb7 {[%emt 0:00:37]} 36. Kg2 {[%emt 0:00:32]} (36. g4 $15) 36... Qxf2+ $17 {[%emt 0:00:02]} 37. Kxf2 {[%emt 0:00:01]} Kc6 {[%emt 0:00:16]} 38. Rc3 {[%emt 0:00:09]} Kd7 {[%emt 0:00:18]} (38... Nc5 $17 {White must now prevent ...Ne4+.} 39. Re1 Nxb2) 39. Rd1 {[%emt 0:00:08]} Ke6 {[%emt 0:00:33]} ({Black should try} 39... f6 $17 40. exf6 Rf8) 40. Rc2 $1 $11 {[%emt 0:00:09]} Rd8 {[%emt 0:00:30]} 41. Re2 {[%emt 0:00:21]} Rc8 {[%emt 0:00:15]} (41... h5 $5) 42. g4 {[%emt 0:00:22]} Nb6 {[%emt 0:00:36]} 43. f5+ {[%emt 0:00:20]} gxf5 {[%emt 0:00:06]} 44. gxf5+ {[%emt 0:00:01]} Kxf5 {[%emt 0:00:25]} 45. d7 {[%emt 0:00:00]} Rd8 {[%emt 0:00:00]} 46. Rd6 {[%emt 0:00:05] White is now going downhill.} (46. Kg1 $11 Nxd7 47. e6 fxe6 48. Rf1+ Kg5 49. Rg2+ Kh4 50. Rf4+ Kh5 51. Rf7) 46... Nxd7 $19 {[%emt 0:00:03]} 47. Rc2 $2 {[%emt 0:00:15]} (47. e6 fxe6 48. Rdxe6 Ndc5) (47. Ke1) 47... Kxe5 {[%emt 0:00:14]} 48. Rd1 {[%emt 0:00:17] [#]} Nd4 $1 {[%emt 0:00:08]} 49. Rc7 {[%emt 0:00:21]} f5 {[%emt 0:00:54]} 50. Rb7 {[%emt 0:00:15]} h5 {[%emt 0:00:08]} 51. h3 {[%emt 0:00:06]} Nc5 {[%emt 0:00:05]} 52. Rxb5 {[%emt 0:00:07]} Rd5 {[%emt 0:00:24]} 53. Rb4 {[%emt 0:00:15]} (53. Rb8 $142 Ne4+ 54. Kf1) 53... f4 {[%emt 0:00:15]} 54. Rc4 {[%emt 0:00:05]} Ne4+ {[%emt 0:00:26]} 55. Kf1 {[%emt 0:00:04]} f3 {[%emt 0:00:43] ( -> ...Nf5)} 56. Rxa4 {[%emt 0:00:07]} Nc2 {[%emt 0:00:33][%cal Rd5d1] Excellent horsemanship. Black mates.} 57. Rc1 {[%emt 0:00:26]} Ne3+ {[%emt 0:00:12]} 58. Ke1 {[%emt 0:00:08]} Kf4 {[%emt 0:00:18]} 59. Rxe4+ {[%emt 0:00:16]} Kxe4 {[%emt 0:00:01]} 60. b4 {[%emt 0:00:08]} Rg5 {[%emt 0:00:02]} 61. Kd2 {[%emt 0:00:10]} Rg2+ {[%emt 0:00:13]} 62. Kc3 {[%emt 0:00:01]} f2 {[%emt 0:00:01] Weighted Error Value: White=0.58/Black=0.09 (flawless) .  Loses game:     	White=1     	---        Mistake:       	White=4     	Black=2      Inaccurate:     	White=6     	Black=4      OK:         	White=7     	Black=17     Best:        	White=1     	Black=4      Strong:       	White=1     	Black=1} 0-1